[Event "*** Titled Tuesday Blitz"]
[Site "Chess.com"]
[Date "2020.10.20"]
[Round "5"]
[White "WIDBIFS"]
[Black "GOGIEFF"]
[Result "1/2-1/2"]
[WhiteElo "2753"]
[BlackElo "2887"]
[TimeControl "180+1"]
[EndTime "10:56:19 PDT"]
[Termination "Game drawn by repetition"]

1. d4 {[%clk 0:03:00.9]} 1... Nf6 {[%clk 0:02:58.9]} 2. Nf3 {[%clk 0:03:01.2]}
2... g6 {[%clk 0:02:59.2]} 3. g3 {[%clk 0:03:01.2]} 3... Bg7 {[%clk 0:02:59.4]}
4. Bg2 {[%clk 0:03:01.9]} 4... O-O {[%clk 0:02:59.9]} 5. O-O {[%clk 0:03:02.8]}
5... Nc6 {[%clk 0:03:00.3]} 6. c4 {[%clk 0:02:58]} 6... a6 {[%clk 0:02:59.8]} 7.
Nc3 {[%clk 0:02:54.4]} 7... Rb8 {[%clk 0:03:00]} 8. d5 {[%clk 0:02:29.2]} 8...
Na5 {[%clk 0:02:58.5]} 9. Qd3 {[%clk 0:02:29]} 9... c5 {[%clk 0:02:47.8]} 10. e4
{[%clk 0:02:27.7]} 10... b5 {[%clk 0:02:38.5]} 11. e5 {[%clk 0:02:17.8]} 11...
bxc4 {[%clk 0:02:32.8]} 12. Qe2 {[%clk 0:01:57]} 12... Ne8 {[%clk 0:02:32.8]}
13. Bg5 {[%clk 0:01:42.9]} 13... h6 {[%clk 0:02:30.7]} 14. Bh4 {[%clk
0:01:43.2]} 14... g5 {[%clk 0:02:19.3]} 15. Bxg5 {[%clk 0:01:33.3]} 15... hxg5
{[%clk 0:02:18.6]} 16. Nxg5 {[%clk 0:01:34.2]} 16... f6 {[%clk 0:02:08.6]} 17.
Qh5 {[%clk 0:00:27.1]} 17... fxg5 {[%clk 0:02:03.8]} 18. Ne4 {[%clk 0:00:13.8]}
18... Nf6 {[%clk 0:01:48.9]} 19. exf6 {[%clk 0:00:12.6]} 19... exf6 {[%clk
0:01:39.1]} 20. Nd6 {[%clk 0:00:12.9]} 20... f5 {[%clk 0:01:39.2]} 21. Rae1
{[%clk 0:00:11.8]} 21... Qf6 {[%clk 0:01:36.9]} 22. Ne8 {[%clk 0:00:11.9]} 22...
Qh6 {[%clk 0:01:36.2]} 23. Nxg7 {[%clk 0:00:11.3]} 23... Qxg7 {[%clk 0:01:13.4]}
24. d6 {[%clk 0:00:11]} 24... Bb7 {[%clk 0:01:13.8]} 25. Re7 {[%clk 0:00:10.8]}
25... Rf7 {[%clk 0:01:14.2]} 26. Rfe1 {[%clk 0:00:10.7]} 26... Bxg2 {[%clk
0:01:11.5]} 27. Re8+ {[%clk 0:00:07.9]} 27... Rxe8 {[%clk 0:01:02.6]} 28. Rxe8+
{[%clk 0:00:08.8]} 28... Rf8 {[%clk 0:01:02.6]} 29. Re7 {[%clk 0:00:09.2]} 29...
Rf7 {[%clk 0:00:50.8]} 30. Re8+ {[%clk 0:00:09.6]} 30... Rf8 {[%clk 0:00:51.1]}
31. Re7 {[%clk 0:00:10.1]} 31... Rf7 {[%clk 0:00:51.6]} 32. Re8+ {[%clk
0:00:10.6]} 1/2-1/2

[Event "*** Titled Tuesday Blitz"]
[Site "Chess.com"]
[Date "2020.10.20"]
[Round "5"]
[White "xberli"]
[Black "Rud_Makarian"]
[Result "0-1"]
[WhiteElo "2560"]
[BlackElo "2755"]
[TimeControl "180+1"]
[EndTime "10:56:20 PDT"]
[Termination "Rud_Makarian won by resignation"]

1. e4 {[%clk 0:03:00.9]} 1... e5 {[%clk 0:02:59.5]} 2. Nf3 {[%clk 0:03:00.8]}
2... Nc6 {[%clk 0:02:59.7]} 3. Bb5 {[%clk 0:03:01.4]} 3... Nf6 {[%clk 0:03:00]}
4. O-O {[%clk 0:03:00.6]} 4... Nxe4 {[%clk 0:03:00.7]} 5. Re1 {[%clk 0:03:00.8]}
5... Nd6 {[%clk 0:03:01.5]} 6. Nxe5 {[%clk 0:03:00.9]} 6... Be7 {[%clk
0:03:02.3]} 7. Bf1 {[%clk 0:02:59.6]} 7... O-O {[%clk 0:03:00.8]} 8. d4 {[%clk
0:02:59.3]} 8... Nf5 {[%clk 0:03:01.3]} 9. c3 {[%clk 0:02:57]} 9... d5 {[%clk
0:02:56.6]} 10. Bf4 {[%clk 0:02:49.8]} 10... Bd6 {[%clk 0:02:56.2]} 11. Nd2
{[%clk 0:02:45.8]} 11... Nce7 {[%clk 0:02:55.8]} 12. Nd3 {[%clk 0:02:36]} 12...
Ng6 {[%clk 0:02:54.8]} 13. Bxd6 {[%clk 0:02:32.5]} 13... Nxd6 {[%clk 0:02:54]}
14. Qf3 {[%clk 0:02:25]} 14... c6 {[%clk 0:02:52.9]} 15. Ne5 {[%clk 0:02:11.9]}
15... Bf5 {[%clk 0:02:51.4]} 16. Bd3 {[%clk 0:02:07]} 16... Qg5 {[%clk 0:02:48]}
17. Bxf5 {[%clk 0:02:01.6]} 17... Nxf5 {[%clk 0:02:48.9]} 18. Nf1 {[%clk
0:01:47.7]} 18... Rfe8 {[%clk 0:02:46.6]} 19. Nxg6 {[%clk 0:01:41]} 19... hxg6
{[%clk 0:02:46.2]} 20. Qd3 {[%clk 0:01:36]} 20... a6 {[%clk 0:02:41]} 21. a4
{[%clk 0:01:32.6]} 21... a5 {[%clk 0:02:37.2]} 22. Ng3 {[%clk 0:01:26.8]} 22...
Qf4 {[%clk 0:02:37.4]} 23. Nxf5 {[%clk 0:01:21.7]} 23... gxf5 {[%clk 0:02:38.3]}
24. Re3 {[%clk 0:01:17.8]} 24... Re4 {[%clk 0:02:37.8]} 25. Rae1 {[%clk
0:01:15.8]} 25... Rae8 {[%clk 0:02:37.6]} 26. g3 {[%clk 0:01:09]} 26... Rxe3
{[%clk 0:02:31.9]} 27. Rxe3 {[%clk 0:01:05.7]} 27... Rxe3 {[%clk 0:02:31.1]} 28.
Qxe3 {[%clk 0:01:00.7]} 28... Qe4 {[%clk 0:02:29.3]} 29. Qxe4 {[%clk 0:00:54.6]}
29... fxe4 {[%clk 0:02:30.2]} 30. f3 {[%clk 0:00:53.6]} 30... f5 {[%clk
0:02:27]} 31. Kf2 {[%clk 0:00:52.6]} 31... g5 {[%clk 0:02:22.8]} 32. Ke3 {[%clk
0:00:49.3]} 32... Kf7 {[%clk 0:02:20.5]} 33. fxe4 {[%clk 0:00:48.8]} 33... fxe4
{[%clk 0:02:09.8]} 34. c4 {[%clk 0:00:45.8]} 34... dxc4 {[%clk 0:01:51.4]} 35.
Kxe4 {[%clk 0:00:44.9]} 35... g4 {[%clk 0:01:44.1]} 36. d5 {[%clk 0:00:37.4]}
36... c5 {[%clk 0:01:41.5]} 37. Ke5 {[%clk 0:00:15.1]} 37... Ke7 {[%clk
0:01:41.8]} 38. d6+ {[%clk 0:00:14.8]} 38... Kd7 {[%clk 0:01:42.4]} 39. Kd5
{[%clk 0:00:14.7]} 39... b6 {[%clk 0:01:42.5]} 40. Kxc4 {[%clk 0:00:13.5]} 40...
Kxd6 {[%clk 0:01:42.6]} 41. Kb5 {[%clk 0:00:12.8]} 41... Kc7 {[%clk 0:01:42.2]}
42. Ka6 {[%clk 0:00:10.1]} 42... Kc6 {[%clk 0:01:42.2]} 43. b3 {[%clk
0:00:07.8]} 43... c4 {[%clk 0:01:42.3]} 44. bxc4 {[%clk 0:00:07.5]} 44... Kc5
{[%clk 0:01:43]} 45. Ka7 {[%clk 0:00:06.5]} 45... Kxc4 {[%clk 0:01:43.5]} 46.
Kxb6 {[%clk 0:00:07.4]} 46... Kb4 {[%clk 0:01:44.4]} 47. Kc6 {[%clk 0:00:07]}
47... Kxa4 {[%clk 0:01:44.6]} 48. Kd5 {[%clk 0:00:07.5]} 48... Kb3 {[%clk
0:01:45]} 49. Ke4 {[%clk 0:00:08.4]} 49... a4 {[%clk 0:01:45.6]} 50. Kf4 {[%clk
0:00:09.3]} 50... a3 {[%clk 0:01:46.5]} 51. Kxg4 {[%clk 0:00:10.2]} 51... a2
{[%clk 0:01:47.3]} 52. h4 {[%clk 0:00:11.1]} 52... a1=Q {[%clk 0:01:48.2]} 0-1

[Event "*** Titled Tuesday Blitz"]
[Site "Chess.com"]
[Date "2020.10.20"]
[Round "5"]
[White "Sjakkerntobi"]
[Black "MisiekZielony"]
[Result "0-1"]
[WhiteElo "2403"]
[BlackElo "2279"]
[TimeControl "180+1"]
[EndTime "10:56:22 PDT"]
[Termination "MisiekZielony won by resignation"]

1. e4 {[%clk 0:03:00.9]} 1... Nf6 {[%clk 0:02:59.5]} 2. e5 {[%clk 0:03:00.5]}
2... Nd5 {[%clk 0:02:59.7]} 3. Nc3 {[%clk 0:03:01]} 3... e6 {[%clk 0:02:59.5]}
4. Nxd5 {[%clk 0:02:57.6]} 4... exd5 {[%clk 0:02:59.5]} 5. d4 {[%clk 0:02:58.5]}
5... d6 {[%clk 0:02:59.9]} 6. exd6 {[%clk 0:02:57.3]} 6... Bxd6 {[%clk
0:02:59.7]} 7. Nf3 {[%clk 0:02:58.2]} 7... O-O {[%clk 0:02:59.6]} 8. Be2 {[%clk
0:02:53.4]} 8... Bg4 {[%clk 0:02:58.9]} 9. O-O {[%clk 0:02:54.2]} 9... c6 {[%clk
0:02:58.9]} 10. c4 {[%clk 0:02:53.8]} 10... dxc4 {[%clk 0:02:55]} 11. Bxc4
{[%clk 0:02:54.7]} 11... Nd7 {[%clk 0:02:53.9]} 12. Bb3 {[%clk 0:02:51.4]} 12...
Nb6 {[%clk 0:02:51.1]} 13. h3 {[%clk 0:02:50.3]} 13... Bh5 {[%clk 0:02:50.6]}
14. g4 {[%clk 0:02:49]} 14... Bg6 {[%clk 0:02:50.1]} 15. Ne5 {[%clk 0:02:49.9]}
15... Be4 {[%clk 0:02:28]} 16. Qe2 {[%clk 0:02:39.8]} 16... Bd5 {[%clk
0:02:27.7]} 17. Bc2 {[%clk 0:02:38.9]} 17... Re8 {[%clk 0:02:15.7]} 18. Qd3
{[%clk 0:02:37.4]} 18... g6 {[%clk 0:02:15.1]} 19. f4 {[%clk 0:02:35.6]} 19...
Bxe5 {[%clk 0:02:11.5]} 20. fxe5 {[%clk 0:02:25.9]} 20... Bc4 {[%clk 0:02:10.9]}
21. Qe3 {[%clk 0:02:16.5]} 21... Bxf1 {[%clk 0:02:10.2]} 22. Kxf1 {[%clk
0:02:17.4]} 22... c5 {[%clk 0:01:06.8]} 23. Qh6 {[%clk 0:02:04.4]} 23... Qxd4
{[%clk 0:01:00.6]} 24. Bg5 {[%clk 0:01:56]} 24... Qxe5 {[%clk 0:00:56.4]} 25.
Kg1 {[%clk 0:01:44.5]} 25... Nd5 {[%clk 0:00:51.2]} 26. Rf1 {[%clk 0:01:43.7]}
26... Qg3+ {[%clk 0:00:44.4]} 27. Kh1 {[%clk 0:01:43]} 27... Ne3 {[%clk
0:00:44.6]} 28. Rg1 {[%clk 0:01:18]} 28... Qf3+ {[%clk 0:00:43]} 29. Kh2 {[%clk
0:01:17.3]} 29... Qf2+ {[%clk 0:00:42.6]} 30. Kh1 {[%clk 0:01:17.2]} 30... Qf3+
{[%clk 0:00:34.1]} 31. Kh2 {[%clk 0:01:17]} 31... Re6 {[%clk 0:00:33.8]} 32. Bb3
{[%clk 0:01:15]} 32... c4 {[%clk 0:00:33.8]} 33. Ba4 {[%clk 0:01:10.6]} 33... b5
{[%clk 0:00:27.9]} 34. Bxb5 {[%clk 0:01:07.6]} 34... Rb8 {[%clk 0:00:26.1]} 35.
a4 {[%clk 0:01:06.1]} 35... a6 {[%clk 0:00:25.9]} 36. b4 {[%clk 0:01:05.3]}
36... axb5 {[%clk 0:00:25.8]} 37. a5 {[%clk 0:01:05.7]} 37... Rbe8 {[%clk
0:00:24.1]} 38. h4 {[%clk 0:01:05.4]} 38... Nxg4+ {[%clk 0:00:23.5]} 39. Rxg4
{[%clk 0:01:05.6]} 39... Qxg4 {[%clk 0:00:23.5]} 0-1

[Event "*** Titled Tuesday Blitz"]
[Site "Chess.com"]
[Date "2020.10.20"]
[Round "5"]
[White "dretch"]
[Black "Kurai"]
[Result "1-0"]
[WhiteElo "2812"]
[BlackElo "2586"]
[TimeControl "180+1"]
[EndTime "10:56:26 PDT"]
[Termination "dretch won by resignation"]

1. d4 {[%clk 0:03:00.9]} 1... d5 {[%clk 0:02:58.5]} 2. c3 {[%clk 0:03:01.2]}
2... Nf6 {[%clk 0:02:58]} 3. Bf4 {[%clk 0:02:59.6]} 3... e6 {[%clk 0:02:56.8]}
4. e3 {[%clk 0:02:58.6]} 4... Bd6 {[%clk 0:02:57.3]} 5. Bg3 {[%clk 0:02:57.8]}
5... O-O {[%clk 0:02:56.6]} 6. Nd2 {[%clk 0:02:57.3]} 6... b6 {[%clk 0:02:55.1]}
7. Ngf3 {[%clk 0:02:56.4]} 7... c5 {[%clk 0:02:54.7]} 8. Ne5 {[%clk 0:02:53.7]}
8... Qc7 {[%clk 0:02:53.3]} 9. Bd3 {[%clk 0:02:47.3]} 9... Ba6 {[%clk 0:02:53]}
10. Bxa6 {[%clk 0:02:46.9]} 10... Nxa6 {[%clk 0:02:53.9]} 11. Qe2 {[%clk
0:02:40.2]} 11... Nb8 {[%clk 0:02:53.6]} 12. O-O {[%clk 0:02:39.8]} 12... Nc6
{[%clk 0:02:53.5]} 13. f4 {[%clk 0:02:33.1]} 13... Ne7 {[%clk 0:02:53.4]} 14.
Bh4 {[%clk 0:02:32.4]} 14... Ng6 {[%clk 0:02:52.7]} 15. Bxf6 {[%clk 0:02:31.7]}
15... gxf6 {[%clk 0:02:53.6]} 16. Ng4 {[%clk 0:02:25.2]} 16... f5 {[%clk
0:02:52.5]} 17. Nf2 {[%clk 0:02:20.6]} 17... Kh8 {[%clk 0:02:26.5]} 18. Rac1
{[%clk 0:02:09.2]} 18... Rac8 {[%clk 0:02:25.3]} 19. Nd3 {[%clk 0:02:05.3]}
19... Rg8 {[%clk 0:02:23.7]} 20. Nf3 {[%clk 0:02:03.6]} 20... f6 {[%clk
0:02:20.9]} 21. c4 {[%clk 0:01:59.2]} 21... Qb7 {[%clk 0:02:14.7]} 22. dxc5
{[%clk 0:01:54.9]} 22... bxc5 {[%clk 0:02:08.9]} 23. b3 {[%clk 0:01:53.3]} 23...
e5 {[%clk 0:01:10.1]} 24. fxe5 {[%clk 0:01:16.8]} 24... fxe5 {[%clk 0:01:11]}
25. Qb2 {[%clk 0:01:16.9]} 25... Qg7 {[%clk 0:01:09.2]} 26. cxd5 {[%clk
0:01:05.7]} 26... e4 {[%clk 0:01:08]} 27. Ng5 {[%clk 0:01:04.3]} 27... Qxb2
{[%clk 0:00:29]} 28. Nxb2 {[%clk 0:01:04.1]} 28... Ne5 {[%clk 0:00:29.5]} 29.
Rxf5 {[%clk 0:01:02.2]} 29... Rg7 {[%clk 0:00:15.2]} 30. Nxe4 {[%clk 0:01:00.3]}
30... Rcg8 {[%clk 0:00:07.8]} 31. Nxd6 {[%clk 0:00:55]} 31... Rxg2+ {[%clk
0:00:07.7]} 32. Kh1 {[%clk 0:00:55.4]} 32... Rxb2 {[%clk 0:00:07.4]} 33. Rxe5
{[%clk 0:00:55.3]} 33... Rgg2 {[%clk 0:00:07.3]} 34. Nf7+ {[%clk 0:00:52.3]}
34... Kg7 {[%clk 0:00:07.4]} 35. Rg5+ {[%clk 0:00:52.4]} 35... Rxg5 {[%clk
0:00:06.5]} 36. Nxg5 {[%clk 0:00:53.3]} 1-0

[Event "*** Titled Tuesday Blitz"]
[Site "Chess.com"]
[Date "2020.10.20"]
[Round "5"]
[White "CarlssonLudvig"]
[Black "Grineva_Marianna"]
[Result "1-0"]
[WhiteElo "2449"]
[BlackElo "2245"]
[TimeControl "180+1"]
[EndTime "10:56:28 PDT"]
[Termination "CarlssonLudvig won by resignation"]

1. e4 {[%clk 0:03:00.9]} 1... c5 {[%clk 0:02:59.4]} 2. Nc3 {[%clk 0:02:59.4]}
2... a6 {[%clk 0:02:58.6]} 3. g3 {[%clk 0:02:56.9]} 3... b5 {[%clk 0:02:57.6]}
4. Bg2 {[%clk 0:02:57.3]} 4... Bb7 {[%clk 0:02:56.9]} 5. d3 {[%clk 0:02:56.4]}
5... e6 {[%clk 0:02:53.1]} 6. Nh3 {[%clk 0:02:55.6]} 6... b4 {[%clk 0:02:51.2]}
7. Ne2 {[%clk 0:02:55]} 7... d5 {[%clk 0:02:51.6]} 8. O-O {[%clk 0:02:53.6]}
8... Ne7 {[%clk 0:02:48]} 9. f4 {[%clk 0:02:53.2]} 9... Nd7 {[%clk 0:02:43.8]}
10. Nf2 {[%clk 0:02:51]} 10... h5 {[%clk 0:02:40.7]} 11. h3 {[%clk 0:02:38.9]}
11... d4 {[%clk 0:02:16.9]} 12. b3 {[%clk 0:02:32.3]} 12... Ng6 {[%clk
0:02:07.8]} 13. a4 {[%clk 0:02:31.1]} 13... Be7 {[%clk 0:02:04.3]} 14. f5 {[%clk
0:02:12.8]} 14... exf5 {[%clk 0:01:55.1]} 15. exf5 {[%clk 0:02:12.3]} 15... Bxg2
{[%clk 0:01:55]} 16. Kxg2 {[%clk 0:02:10.8]} 16... Nge5 {[%clk 0:01:52.5]} 17.
Ne4 {[%clk 0:02:03.3]} 17... Qb6 {[%clk 0:01:50.1]} 18. Bf4 {[%clk 0:02:01]}
18... Qc6 {[%clk 0:01:34.9]} 19. Ng1 {[%clk 0:01:54.5]} 19... O-O-O {[%clk
0:01:22.4]} 20. Nf3 {[%clk 0:01:48.3]} 20... Nxf3 {[%clk 0:01:19]} 21. Qxf3
{[%clk 0:01:49.2]} 21... Nf6 {[%clk 0:01:11.9]} 22. Nxf6 {[%clk 0:01:29.4]}
22... Qxf3+ {[%clk 0:01:10.6]} 23. Kxf3 {[%clk 0:01:30.3]} 23... Bxf6 {[%clk
0:01:10.7]} 24. Rfe1 {[%clk 0:01:29.5]} 24... Kd7 {[%clk 0:01:08.1]} 25. Re2
{[%clk 0:01:28.2]} 25... Rde8 {[%clk 0:01:03.6]} 26. Rae1 {[%clk 0:01:28]} 26...
Rxe2 {[%clk 0:01:03]} 27. Rxe2 {[%clk 0:01:28.9]} 27... a5 {[%clk 0:00:52.6]}
28. Re4 {[%clk 0:01:14.2]} 28... Kc6 {[%clk 0:00:49.4]} 29. Be5 {[%clk
0:01:07.2]} 29... Re8 {[%clk 0:00:40.2]} 30. Bxf6 {[%clk 0:00:54.6]} 30... Rxe4
{[%clk 0:00:39.3]} 31. Kxe4 {[%clk 0:00:54.4]} 31... gxf6 {[%clk 0:00:39.3]} 32.
Kf4 {[%clk 0:00:51.1]} 32... Kd5 {[%clk 0:00:36]} 33. h4 {[%clk 0:00:49.6]}
33... Kc6 {[%clk 0:00:30.1]} 34. g4 {[%clk 0:00:48.5]} 34... hxg4 {[%clk
0:00:29.8]} 35. h5 {[%clk 0:00:44.9]} 35... Kd5 {[%clk 0:00:27.1]} 36. h6 {[%clk
0:00:44.9]} 36... g3 {[%clk 0:00:26.7]} 37. Kxg3 {[%clk 0:00:44.4]} 37... Ke5
{[%clk 0:00:27.3]} 38. h7 {[%clk 0:00:44.5]} 38... Kxf5 {[%clk 0:00:27.1]} 39.
h8=Q {[%clk 0:00:44.3]} 1-0

[Event "*** Titled Tuesday Blitz"]
[Site "Chess.com"]
[Date "2020.10.20"]
[Round "5"]
[White "TheCavemanChesss"]
[Black "ChronicUnhappiness"]
[Result "1-0"]
[WhiteElo "2480"]
[BlackElo "2290"]
[TimeControl "180+1"]
[EndTime "10:56:31 PDT"]
[Termination "TheCavemanChesss won by resignation"]

1. e4 {[%clk 0:03:00.9]} 1... c5 {[%clk 0:02:59.1]} 2. Nf3 {[%clk 0:02:59]} 2...
Nc6 {[%clk 0:02:58.5]} 3. d4 {[%clk 0:02:59.3]} 3... cxd4 {[%clk 0:02:58.6]} 4.
Nxd4 {[%clk 0:03:00.2]} 4... Nf6 {[%clk 0:02:59.1]} 5. Nc3 {[%clk 0:03:00.7]}
5... e5 {[%clk 0:02:59.3]} 6. Ndb5 {[%clk 0:03:00.7]} 6... d6 {[%clk 0:02:59.6]}
7. Bg5 {[%clk 0:03:01.4]} 7... a6 {[%clk 0:02:59.8]} 8. Na3 {[%clk 0:03:01.9]}
8... b5 {[%clk 0:03:00]} 9. Nd5 {[%clk 0:03:02.1]} 9... Be7 {[%clk 0:02:59.6]}
10. Bxf6 {[%clk 0:03:02.5]} 10... Bxf6 {[%clk 0:02:59.4]} 11. c3 {[%clk
0:03:03.1]} 11... Bg5 {[%clk 0:02:59.2]} 12. Nc2 {[%clk 0:03:03.1]} 12... O-O
{[%clk 0:02:59]} 13. a4 {[%clk 0:03:03.1]} 13... bxa4 {[%clk 0:02:59.1]} 14.
Rxa4 {[%clk 0:03:04]} 14... Rb8 {[%clk 0:02:59.4]} 15. b4 {[%clk 0:03:02.9]}
15... a5 {[%clk 0:02:59]} 16. b5 {[%clk 0:03:02.7]} 16... Ne7 {[%clk 0:02:58.3]}
17. Nce3 {[%clk 0:02:39.8]} 17... Bxe3 {[%clk 0:02:53.8]} 18. Nxe3 {[%clk
0:02:40.7]} 18... Bb7 {[%clk 0:02:52.4]} 19. Be2 {[%clk 0:02:35.3]} 19... Qc7
{[%clk 0:02:08.4]} 20. O-O {[%clk 0:02:30.7]} 20... Qxc3 {[%clk 0:01:47.6]} 21.
Qxd6 {[%clk 0:02:22]} 21... Ng6 {[%clk 0:01:28.3]} 22. Rd1 {[%clk 0:01:52.5]}
22... Nf4 {[%clk 0:01:27.1]} 23. Bf3 {[%clk 0:01:50.5]} 23... Ne6 {[%clk
0:01:12.3]} 24. Ra3 {[%clk 0:01:30]} 24... Qb4 {[%clk 0:01:06.8]} 25. Qxb4
{[%clk 0:01:29.1]} 25... axb4 {[%clk 0:01:07.7]} 26. Rb3 {[%clk 0:01:27.7]}
26... Nd4 {[%clk 0:00:39.6]} 27. Rxb4 {[%clk 0:01:27.6]} 27... Rfd8 {[%clk
0:00:32.1]} 28. Rdb1 {[%clk 0:01:16.5]} 28... g6 {[%clk 0:00:28.6]} 29. Ng4
{[%clk 0:01:12.4]} 29... Nxf3+ {[%clk 0:00:13.8]} 30. gxf3 {[%clk 0:01:12.4]}
30... Rd3 {[%clk 0:00:12.6]} 31. Nxe5 {[%clk 0:01:12.7]} 31... Rc3 {[%clk
0:00:11.9]} 32. b6 {[%clk 0:01:09.5]} 32... Rd8 {[%clk 0:00:11.8]} 33. Rc4
{[%clk 0:01:07.3]} 33... Rxc4 {[%clk 0:00:10]} 34. Nxc4 {[%clk 0:01:08.2]} 34...
Rd7 {[%clk 0:00:07.9]} 35. Na5 {[%clk 0:01:08.1]} 35... Kf8 {[%clk 0:00:08]} 36.
Rc1 {[%clk 0:01:08.5]} 36... Ke7 {[%clk 0:00:07.6]} 37. Nxb7 {[%clk 0:01:08.7]}
37... Rxb7 {[%clk 0:00:07.2]} 38. Rb1 {[%clk 0:01:09.2]} 38... Kd6 {[%clk
0:00:06.9]} 39. Kg2 {[%clk 0:01:09.8]} 39... Kc6 {[%clk 0:00:07.8]} 40. Kg3
{[%clk 0:01:10.1]} 40... Rxb6 {[%clk 0:00:07.9]} 41. Rxb6+ {[%clk 0:01:09.8]}
41... Kxb6 {[%clk 0:00:08.8]} 42. Kf4 {[%clk 0:01:10.6]} 42... f6 {[%clk
0:00:09.2]} 43. e5 {[%clk 0:01:11.1]} 43... f5 {[%clk 0:00:07.6]} 44. Kg5 {[%clk
0:01:10.6]} 44... Kc6 {[%clk 0:00:06.9]} 45. Kf6 {[%clk 0:01:11.5]} 45... Kd7
{[%clk 0:00:07.1]} 46. Kf7 {[%clk 0:01:12.1]} 1-0

[Event "*** Titled Tuesday Blitz"]
[Site "Chess.com"]
[Date "2020.10.20"]
[Round "5"]
[White "ajdemipopushi"]
[Black "MVM2008"]
[Result "1-0"]
[WhiteElo "2347"]
[BlackElo "2140"]
[TimeControl "180+1"]
[EndTime "10:56:31 PDT"]
[Termination "ajdemipopushi won by resignation"]

1. Nf3 {[%clk 0:03:00.9]} 1... d5 {[%clk 0:02:55.2]} 2. g3 {[%clk 0:03:00.6]}
2... c5 {[%clk 0:02:53]} 3. Bg2 {[%clk 0:03:00.2]} 3... f5 {[%clk 0:02:49.9]} 4.
c4 {[%clk 0:02:39.5]} 4... e6 {[%clk 0:02:46.6]} 5. O-O {[%clk 0:02:37.4]} 5...
Nf6 {[%clk 0:02:42.2]} 6. d4 {[%clk 0:02:36]} 6... dxc4 {[%clk 0:02:32.2]} 7.
Qa4+ {[%clk 0:02:32.7]} 7... Nc6 {[%clk 0:02:23.8]} 8. Ne5 {[%clk 0:02:30.7]}
8... Nd5 {[%clk 0:02:19.2]} 9. Nxc6 {[%clk 0:02:25]} 9... bxc6 {[%clk
0:02:14.3]} 10. dxc5 {[%clk 0:02:12.2]} 10... Bd7 {[%clk 0:01:56.3]} 11. Qxc4
{[%clk 0:02:09.5]} 11... Be7 {[%clk 0:01:55.6]} 12. e4 {[%clk 0:01:59.1]} 12...
fxe4 {[%clk 0:01:53.9]} 13. Bxe4 {[%clk 0:01:58.7]} 13... O-O {[%clk 0:01:52.8]}
14. a3 {[%clk 0:01:48.2]} 14... Qe8 {[%clk 0:01:30.2]} 15. Qc2 {[%clk
0:00:55.3]} 15... Qh5 {[%clk 0:01:24.6]} 16. Nd2 {[%clk 0:00:54.9]} 16... Nf6
{[%clk 0:01:18]} 17. Bg2 {[%clk 0:00:52.1]} 17... Bxc5 {[%clk 0:01:11.2]} 18.
Ne4 {[%clk 0:00:49.1]} 18... Nxe4 {[%clk 0:01:04.5]} 19. Qxe4 {[%clk 0:00:48.8]}
19... Bb6 {[%clk 0:00:55.3]} 20. Be3 {[%clk 0:00:47.4]} 20... Bxe3 {[%clk
0:00:54]} 21. Qxe3 {[%clk 0:00:46]} 21... Kh8 {[%clk 0:00:41.1]} 22. Rad1 {[%clk
0:00:44.4]} 22... Qf7 {[%clk 0:00:35.9]} 23. Rd6 {[%clk 0:00:42.4]} 23... Qe7
{[%clk 0:00:33]} 24. Rfd1 {[%clk 0:00:41.7]} 24... Rad8 {[%clk 0:00:32.5]} 25.
Qxa7 {[%clk 0:00:40.6]} 25... Rf7 {[%clk 0:00:25.5]} 26. Bxc6 {[%clk 0:00:39]}
26... h5 {[%clk 0:00:09.1]} 27. Rxd7 {[%clk 0:00:38.5]} 27... Rxd7 {[%clk
0:00:07.7]} 28. Rxd7 {[%clk 0:00:38.6]} 1-0

[Event "*** Titled Tuesday Blitz"]
[Site "Chess.com"]
[Date "2020.10.20"]
[Round "5"]
[White "alexwinter25"]
[Black "Heineccius"]
[Result "0-1"]
[WhiteElo "2355"]
[BlackElo "2527"]
[TimeControl "180+1"]
[EndTime "10:56:34 PDT"]
[Termination "Heineccius won by checkmate"]

1. e4 {[%clk 0:03:00.9]} 1... c5 {[%clk 0:02:59]} 2. Nf3 {[%clk 0:03:01.2]} 2...
e6 {[%clk 0:02:59.5]} 3. d4 {[%clk 0:03:01.9]} 3... cxd4 {[%clk 0:03:00.1]} 4.
c3 {[%clk 0:03:02.8]} 4... Nf6 {[%clk 0:02:55.9]} 5. Bd3 {[%clk 0:03:02.6]} 5...
dxc3 {[%clk 0:02:52.4]} 6. Nxc3 {[%clk 0:03:03.5]} 6... d6 {[%clk 0:02:50.1]} 7.
O-O {[%clk 0:03:03.3]} 7... Nc6 {[%clk 0:02:48.2]} 8. Qe2 {[%clk 0:03:03.6]}
8... a6 {[%clk 0:02:47.4]} 9. Bf4 {[%clk 0:03:03.7]} 9... Be7 {[%clk 0:02:43.6]}
10. h3 {[%clk 0:02:59.8]} 10... e5 {[%clk 0:02:21.8]} 11. Be3 {[%clk 0:02:56.8]}
11... Be6 {[%clk 0:02:19.4]} 12. Rfd1 {[%clk 0:02:55.3]} 12... h6 {[%clk
0:02:13.5]} 13. Rac1 {[%clk 0:02:50.3]} 13... O-O {[%clk 0:02:12.6]} 14. Bb1
{[%clk 0:02:32.9]} 14... Rc8 {[%clk 0:02:04.5]} 15. Nd5 {[%clk 0:02:32.3]} 15...
Bxd5 {[%clk 0:01:50.5]} 16. exd5 {[%clk 0:02:33.2]} 16... Nb4 {[%clk 0:01:41.6]}
17. Rxc8 {[%clk 0:02:13.6]} 17... Qxc8 {[%clk 0:01:42.5]} 18. g4 {[%clk
0:01:25.9]} 18... Nbxd5 {[%clk 0:01:31.2]} 19. g5 {[%clk 0:01:07.6]} 19... hxg5
{[%clk 0:01:25.9]} 20. Bxg5 {[%clk 0:00:50.3]} 20... Qxh3 {[%clk 0:01:20.6]} 21.
Rxd5 {[%clk 0:00:36.7]} 21... Nxd5 {[%clk 0:01:19.3]} 22. Qe4 {[%clk 0:00:37.2]}
22... Nf6 {[%clk 0:01:05.5]} 23. Bxf6 {[%clk 0:00:32.8]} 23... Bxf6 {[%clk
0:01:04.6]} 24. Qxb7 {[%clk 0:00:32.4]} 24... g6 {[%clk 0:00:48.8]} 25. Qd5
{[%clk 0:00:29.1]} 25... Kg7 {[%clk 0:00:46.2]} 26. Ne1 {[%clk 0:00:14.8]} 26...
Rh8 {[%clk 0:00:42.5]} 27. Qg2 {[%clk 0:00:15.3]} 27... Qh6 {[%clk 0:00:37]} 28.
Nf3 {[%clk 0:00:13.8]} 28... Qc1+ {[%clk 0:00:35.3]} 29. Qf1 {[%clk 0:00:14.4]}
29... Rh1+ {[%clk 0:00:34.9]} 30. Kg2 {[%clk 0:00:14.3]} 30... Qxf1+ {[%clk
0:00:35]} 31. Kg3 {[%clk 0:00:15.2]} 31... Qh3# {[%clk 0:00:34.3]} 0-1